Cogmind - Beta 14 @@@ ROGUE MODE // 2024.08.15 @ 18:26:18 Player: KillHour Result: Destroyed by S-10 Pest with Light Assault Rifle Performance ------------- Evolutions (0) 0 Regions Visited (1) 200 Robots Destroyed (5) 25 Value Destroyed (104) 104 Prototype IDs (3) 60 Alien Tech Used (0) 0 Bonus (0) 0 TOTAL SCORE: 389 Bonus ------- None Cogmind --------- Core Integrity 0/250 Matter 239/300 Energy 99/100 System Corruption 0% Temperature Cool (95) Movement Rolling (100) Location -10/Materials Parts ------- > --- POWER (1) -------- (None) > --- PROPULSION (2) --- Compact Wheel > --- UTILITY (2) ------ Small Storage Unit > --- WEAPON (2) ------- (None) > --- INVENTORY (8) ---- Ion Engine Light Treads Light Treads Improved Terrain Scanner Medium Laser Small Laser Peak State ------------ > --- POWER ------------ Ion Engine > --- PROPULSION ------- Wheel Compact Wheel > --- UTILITY ---------- Small Storage Unit Seismic Detector > --- WEAPON ----------- EM Pulse Gun Medium Laser > --- INVENTORY -------- Ion Engine Light Treads Light Treads Improved Terrain Scanner Small Laser [Rating: 7] Favorites ----------- Power Ion Engine Engine Ion Engine Propulsion Compact Wheel Wheel Compact Wheel Utility Small Storage Unit Device Seismic Detector Storage Small Storage Unit Weapon Medium Laser Energy Gun Medium Laser Ballistic Cannon Light Cannon Build | -11 -10 ------- Run | Yrd Mat Slots Evolved . | . . Power . | . . Propulsion . | . . Utility . | . . Weapon . | . . Parts Attached 9 | 7 2 Power 1 | 1 . Engine 1 | 1 . Core . | . . Reactor . | . . Propulsion 2 | 2 . Treads . | . . Leg . | . . Wheel 2 | 2 . Hover . | . . Flight . | . . Utility 2 | 2 . Device 1 | 1 . Storage 1 | 1 . Processor . | . . Hackware . | . . Protection . | . . Artifact . | . . Weapon 4 | 2 2 Energy Gun 3 | 2 1 Energy Cannon . | . . Ballistic Gun . | . . Ballistic Cannon 1 | . 1 Launcher . | . . Special Weapon . | . . Impact Weapon . | . . Slashing Weapon . | . . Piercing Weapon . | . . Special Melee Weapon . | . . Unidentified Prototypes . | . . Parts Lost 5 | . 5 Power 1 | . 1 Propulsion 1 | . 1 Utility 1 | . 1 Weapon 2 | . 2 Highest Loss Streak 5 | . 5 To Critical Strikes . | . . Average Slot Usage (%) 90 | . 90 Engine 11 | . 11 Wheel 26 | . 26 Device 11 | . 11 Storage 14 | . 14 Energy Gun 14 | . 14 Ballistic Cannon 11 | . 11 Peak Build Rating 7 | 7 7 Average Rating 5 | 4 6 On Entrance 3 | . 7 Naked Turns . | . . Heaviest Build 16 | 15 16 Greatest Support 26 | 26 26 Greatest Overweight (x) 1 | 1 . Average Overweight (x) . | . . Largest Inventory Capacity 8 | 8 8 Average Capacity 7 | 7 8 Most Carried 6 | 6 6 Average Carried 5 | 3 5 Final Capacity 8 | 8 8 Final Carried 6 | 5 6 Class Distribution -------------------- 100% | Mutant Dominant Class ---------------- Mutant | -10/Materials Resources | -11 -10 ----------- Run | Yrd Mat Matter Collected 280 | 270 10 Remotely . | . . Salvage Created 180 | 82 98 Parts 10 | 5 5 Haulers Intercepted . | . . Recyclers Shooed . | . . Parts Field Recycled . | . . Retrieved Matter . | . . Parts Self-Destructed . | . . Prevented . | . . Kills | -11 -10 ------- Run | Yrd Mat Combat Hostiles Destroyed 3 | . 3 Guns 3 | . 3 Classes Destroyed 4 | 2 2 Tunneler 1 | 1 . Recycler 1 | 1 . Swarmer 1 | . 1 Grunt 2 | . 2 Best Kill Streak 3 | 2 3 Combat Bots Only 3 | . 3 Max Kills in Single Turn 1 | 1 1 Gunslinging . | . . Exploded . | . . Melee . | . . Uniques/NPCs Destroyed . | . . Combat | -11 -10 -------- Run | Yrd Mat Hostile Shots Fired 80 | . 80 Missed 20 | . 20 Damage Taken 656 | . 656 Core 254 | . 254 Absorbed by Shields . | . . Core Remaining (%) 100 | 100 . Volleys Fired 28 | 9 19 Largest 2 | 2 2 Hottest 90 | 90 85 Shots Fired 45 | 10 35 Gun 26 | 10 16 Cannon 19 | . 19 Launcher . | . . Special . | . . Kinetic 19 | . 19 Thermal 24 | 9 15 Explosive . | . . Electromagnetic 2 | 1 1 Robot Hit Streak 4 | 3 4 Robot Miss Streak 3 | 1 3 Penetration Max . | . . Secondary Targets . | . . Shots Hit Robots 23 | 6 17 Core Hits 8 | 3 5 Critical Kills . | . . Critical Parts Destroyed . | . . Critical Strikes 1 | 1 . Burn 1 | 1 . Melee Attacks . | . . Impact . | . . Slashing . | . . Piercing . | . . Sneak Attacks . | . . Combat Hostiles . | . . Follow-up Attacks . | . . Damage Inflicted 310 | 75 235 Guns 226 | 75 151 Cannons 84 | . 84 Explosions . | . . Melee . | . . Ramming . | . . Kinetic 84 | . 84 Thermal 214 | 75 139 Explosive . | . . Electromagnetic 12 | . 12 Impact . | . . Slashing . | . . Piercing . | . . Highest Corruption . | . . Average Corruption . | . . Corruption Purged . | . . Corruption Blocked . | . . Overload Shots . | . . Overflow Damage . | . . Projectiles . | . . Explosions . | . . Melee . | . . Knockbacks 3 | . 3 Impact . | . . Kinetic 2 | . 2 Secondary 1 | . 1 Self-Inflicted Damage . | . . Shots . | . . Rammed . | . . Targets Rammed . | . . Kicked . | . . Crushed . | . . Highest Temperature 435 | 80 435 Average Temperature 203 | 44 254 Received Heat Transfer 258 | . 258 Effects 2 | . 2 Short Circuit 1 | . 1 Damage (minor) 1 | . 1 Siege Activations . | . . Robots Corrupted . | . . Combat Hostiles . | . . Parts Fried . | . . Impact Corruptions . | . . Robots Melted . | . . Combat Hostiles . | . . Parts Melted . | . . Heat Transferred 703 | 296 407 Parts Sabotaged . | . . Parts Stolen . | . . Parts Stripped . | . . Power Chain Reactions . | . . Alert | -11 -10 ------- Run | Yrd Mat Peak Influence 83 | 10 83 Initial 6 | . 6 Average 17 | 3 23 Maximum Alert Level . | . . Low Security (%) 100 | 100 100 Level 1 . | . . Level 2 . | . . Level 3 . | . . Level 4 . | . . Level 5 . | . . High Security . | . . Max Security . | . . Squads Dispatched 1 | . 1 Investigation . | . . Extermination . | . . Reinforcement 1 | . 1 Assault . | . . Garrison . | . . Intercept . | . . Searches Triggered . | . . Construction Impeded . | . . Haulers Reinforced . | . . Active Scanning Responses . | . . Cargo Convoy Interrupts . | . . Stealth | -11 -10 --------- Run | Yrd Mat Distress Signals 2 | . 2 Communications Jammed . | . . Distress Signals . | . . Times Spotted 9 | . 9 Peak Tracking Total 8 | . 8 Tactical Retreats . | . . Traps | -11 -10 ------- Run | Yrd Mat Traps Triggered . | . . Indirectly . | . . Trap Hack Attempts . | . . Triggered . | . . Disarmed . | . . Reprogrammed . | . . Reused . | . . Traps Extracted . | . . Installed . | . . Triggered . | . . Machines | -11 -10 ---------- Run | Yrd Mat Machines Disabled . | . . Max in Single Turn . | . . Machines Repaired . | . . Machines Dismantled . | . . Machines Sabotaged . | . . Overloaded Fab Kills . | . . Hacking | -11 -10 --------- Run | Yrd Mat Machines Accessed 3 | . 3 Terminals 3 | . 3 Fabricators . | . . Repair Stations . | . . Recycling Units . | . . Scanalyzers . | . . Garrison Access . | . . Total Hacks 14 | . 14 Successful 11 | . 11 Failed 3 | . 3 Catastrophic 1 | . 1 Database Lockouts . | . . Manual 4 | . 4 Terminals 14 | . 14 Fabricators . | . . Repair Stations . | . . Recycling Units . | . . Scanalyzers . | . . Garrison Access . | . . Terminal Hacks 8 | . 8 Record 4 | . 4 Prototype ID Bank 2 | . 2 Locate Traps 1 | . 1 Zone Layout 1 | . 1 Fabricator Hacks . | . . Repair Station Hacks . | . . Recycling Unit Hacks . | . . Scanalyzer . | . . Garrison Access Hacks . | . . Unauthorized Hacks 3 | . 3 Terminals 3 | . 3 Botnet 3 | . 3 Fabricators . | . . Repair Stations . | . . Recycling Units . | . . Scanalyzers . | . . Garrison Access . | . . Data Cores Recovered . | . . Used . | . . Hacking Detections 3 | . 3 Full Trace Events . | . . Feedback Events . | . . Feedback Blocked . | . . Robot Schematics Acquired . | . . Robots Built . | . . Authchips . | . . Time . | . . Total Robot Build Rating . | . . Part Schematics Acquired . | . . Parts Built . | . . Authchips . | . . Time . | . . Total Part Build Rating . | . . Parts Repaired . | . . Time . | . . Parts Recycled . | . . Recycled Matter . | . . Retrieved Matter . | . . Retrieved Components . | . . Parts Scanalyzed . | . . Part Schematics Acquired . | . . Parts Damaged . | . . Bothacking | -11 -10 ------------ Run | Yrd Mat Used RIF Installer . | . . Robots Hacked . | . . Non-combat . | . . Combat . | . . Robot Hacks Applied . | . . Relay Couplers Released . | . . Fabnet Peak Effective % . | . . Robots Rewired . | . . Allies Hacked . | . . Hacks Repelled . | . . Allies | -11 -10 -------- Run | Yrd Mat Total Allies . | . . Largest Group . | . . Highest-Rated Group . | . . Highest-Rated Ally . | . . Total Orders . | . . Ally Attacks . | . . Total Damage . | . . Kills . | . . Allies Corrupted . | . . Allies Melted . | . . Intel | -11 -10 ------- Run | Yrd Mat Robot Analysis Total . | . . Derelict Logs Recovered . | . . Drone Launches . | . . Drone Recoveries . | . . Exploration | -11 -10 ------------- Run | Yrd Mat Turns Passed 273 | 83 190 Spaces Moved 196 | 51 145 Core 3 | 3 . Treads . | . . Legs . | . . Wheels 193 | 48 145 Hover . | . . Flight . | . . Fastest Speed 50 | 50 90 Average Speed 90 | 88 91 Slowest Speed 100 | 100 100 Overloaded Moves . | . . Propulsion Burnouts . | . . Robots Hopped . | . . Cave-ins Triggered . | . . Exploration Rate (%) 11 | 4 18 Regions Visited 1 Branch Regions . Pre-discovered Areas . | . . Known Exits Taken . | . . Unknown Exits Taken 1 | 1 . Scrap Searched . | . . Spaces Dug . | . . Terrain Destroyed . | . . Melee . | . . Projectile . | . . AOE . | . . Terrain Rammed . | . . Walls Destroyed . | . . Machines Disabled . | . . Actions | -11 -10 --------- Run | Yrd Mat Total 245 | 78 167 Wait . | . . Move 195 | 50 145 Hop . | . . Pick Up 13 | 12 1 Fast Attach . | . . Attach 7 | 7 . Detach . | . . Swap 2 | . 2 Drop . | . . Fire 28 | 9 19 Melee . | . . Ram . | . . Kick . | . . Crush . | . . Escape Stasis . | . . Rewire . | . . Trap . | . . Miscellaneous . | . . Route ------- -11/Scrapyard -10/Materials History --------- Turn | Location | Event 2 | -11/Scrapyard | Met Revision 17 35 | -11/Scrapyard | Discovered new exit (range 13) 84 | -11/Scrapyard | Entered Materials 248 | -10/Materials | Core integrity fell below 50% 261 | -10/Materials | Core integrity fell below 20% 274 | -10/Materials | Destroyed by S-10 Pest with Light Assault Rifle Last Messages --------------- 00217_ ALERT: Hostiles spotted, dispatching reinforcements to Terminal M008. 00221_ G-34 Mercenary destroyed. 00221_ K-01 Serf collects debris. 00224_ K-01 Serf destroyed. 00227_ S-10 Pest destroyed. 00235_ U-05 Engineer works on Electrolysis Chamber. 00236_ R-06 Scavenger collects Particle Gun. 00238_ Ion Engine destroyed. 00242_ Seismic Detector destroyed. 00244_ R-06 Scavenger collects Aluminum Leg. 00247_ R-06 Scavenger collects Lgt. Ion Engine. 00253_ EM Pulse Gun broken. 00253_ Overheating: Short circuit. 00253_ Critical hit (Burn: +37). 00256_ Wheel destroyed. 00257_ G-47 Trooper knocked back. 00258_ Lgt. Cannon destroyed. 00260_ Overheating: Sml. Storage Unit damaged (-37). 00261_ Broken EM Pulse Gun destroyed. 00266_ K-01 Serf collects debris. Map ----- +----------------------------------------------------+ | ?????????????????????????????????????????????????? | | ?????????????????????????????????????????????????? | | ????????????????????????^^^??????????????????????? | | ?????????????????????????????????????????????????? | | ?????????????????????????????????????????????????? | | ??????????????????###????????????????????????????? | | ?????????????????? ????????????????????????????? | | ??????????????????? ????????????????????????????? | | ??????????????????? %????????????????????????????? | | ??????????????????##/######??????????????????????? | | ??????????????????# %"= #??????????????????????? | | ??????????????????# | [ #??????????????????????? | | ??????????????????# #??????????# + ? | | ??????????????????# #??????????# # ? | | ??????????????????# #??????????# "T" # ? | | ??????????????????# #??????????#####+### ? | | ??????????????????# #????????####### ### ? | | ??????????????????#"" *%= #????????# ? | | ??????????????????#"T = #????????# ? | | ??????????????????#"" #????????# ? | | ??????????????????# #????????##### ##? | | ??????????????????##/######????????????# #?? | | ???????????????????# #?????????????????# ##? | | ???????????????????# #?????????????????# ? | | ???????????????????#s#######???????????# ? | | ???????????????????# s @ #???#####???# ? | | ??????????????????######## #???#"""#???# ####? | | ??????????????????# # #####"T"#######+######? | | ??????????????????#""" # # # ? | | ??????????????????#""" # # T # """"" ? | | ??????????????????#""" # # # """"" ? | | ??????????????????# + #[ # """"" ? | | ??????????????????#% # # # ? | | ????????????????########## # """ """ ############? | | ????????????????# # # """ """ #???????????? | | ????????????????# """ # # """ """ #???????????? | | ????????????????# """ # #+#########???????????? | | ????????????????# """ # #??????????????? | | ????????????????# + #??????????????? | | ????????????????# """ # #??????????????? | | ????????????????# """ ###### #??????????????? | | ????????????????# """ #????# #??????????????? | | ????????????????# #????# #??????????????? | | ????????????????############### #??????????????? | | ?????????????????????# # #??????????????? | | ?????????????????????# # #??????????????? | | ?????????????????????# # #??????????????? | | ?????????????????????# """ # #??????????????? | | ?????????????????????# """"" + #??????????????? | | ?????????????????????# """"" # #??????????????? | +----------------------------------------------------+ Best States ------------- Heat Dissipation 25 Energy Generation 10 Energy Capacity 250 Matter Stores 300 Matter Capacity 300 Sight Range 16 Terrain Scan Density 10 Evasion (%) 42 Item Schematics ----------------- None Robot Schematics ------------------ None Fabricated ------------ Nothing Alien Tech Used ----------------- None Achievements -------------- None Challenges ------------ None Game ------ Seed SalvagePiercingSink Manual? 0 Play Time 00:13:14 Cumulative 23.2 hours Start 2024.08.15 @ 18:11:20 End 2024.08.15 @ 18:26:18 Sessions 1 Manual Loads 0 Difficulty Rogue Special Mode None Game No. 9 Rogue 9 Adventurer 0 Explorer 0 Win Type - Total 0 Types 0/0/0/0/0/0/0/0/0 Lore% 8 Gallery% 12 Achievement% 8 Wizard Run 0 Options --------- Layout 2 ASCII 0 Keyboard 0 Movement Numpad Keybinds 0 Fullscreen 2 Font 48/Smallcaps Map View 130x44 Zoom Use 0% Tactical HUD 1 Map Filters NONE Filters NONE Steam 1 RUN: 9296c06e-a5c1-488f-8fb7-1ecdfe2622fa